Cogmind - Beta 11.1 @@@ ROGUE MODE // 2022.06.19 @ 10:01:41 Player: ChromeKnight Result: Self-destructed Performance ------------- Evolutions (1) 500 Regions Visited (2) 400 Robots Destroyed (27) 135 Value Destroyed (693) 693 Prototype IDs (0) 0 Alien Tech Used (0) 0 Bonus (0) 0 TOTAL SCORE: 1728 Bonus ------- None Cogmind --------- Core Integrity 316/400 Matter 230/300 Energy 265/265 System Corruption 0% Temperature Cool (0) Movement Rolling (130) Ox2 Location -9/Materials Parts ------- > --- POWER (1) -------- Improved Ion Engine > --- PROPULSION (2) --- Light Treads Compact Wheel > --- UTILITY (4) ------ Heat Sink High-capacity Storage Unit Weight Redist. System Signal Interpreter > --- WEAPON (2) ------- Minigun Assault Cannon > --- INVENTORY (20) --- Improved Ion Engine Light Treads Light Treads Light Treads Light Treads Wheel Weight Redist. System Weight Redist. System Signal Interpreter Minigun Minigun Minigun Assault Cannon Assault Cannon Assault Cannon Grenade Launcher Datajack Datajack Datajack Datajack Peak State ------------ > --- POWER ------------ Improved Ion Engine > --- PROPULSION ------- Light Treads Wheel > --- UTILITY ---------- Heat Sink High-capacity Storage Unit Weight Redist. System Signal Interpreter > --- WEAPON ----------- Minigun Assault Cannon > --- INVENTORY -------- Ion Engine Light Treads Light Treads Light Treads Wheel Weight Redist. System Weight Redist. System Signal Interpreter Minigun Minigun Minigun Assault Cannon Assault Cannon Assault Cannon Grenade Launcher Datajack Datajack Datajack Datajack [Rating: 18] Favorites ----------- Power Light Ion Engine Engine Light Ion Engine Propulsion Light Treads Treads Light Treads Wheel Wheel Utility Weight Redist. System Device Weight Redist. System Storage High-capacity Storage Unit Processor Signal Interpreter Weapon Heavy EM Pulse Gun Energy Gun Heavy EM Pulse Gun Ballistic Gun Minigun Ballistic Cannon Assault Cannon Build | -11 -10 -9 ------- Run | Scr Mat Mat Slots Evolved 2 | . . 2 Power . | . . . Propulsion . | . . . Utility 2 | . . 2 Weapon . | . . . Parts Attached 29 | 7 5 17 Power 5 | 1 . 4 Engine 5 | 1 . 4 Core . | . . . Reactor . | . . . Propulsion 10 | 2 1 7 Treads 6 | 1 . 5 Leg . | . . . Wheel 4 | 1 1 2 Hover . | . . . Flight . | . . . Utility 5 | 1 2 2 Device 2 | . 1 1 Storage 2 | 1 1 . Processor 1 | . . 1 Hackware . | . . . Protection . | . . . Artifact . | . . . Weapon 9 | 3 2 4 Energy Gun 2 | . 2 . Energy Cannon . | . . . Ballistic Gun 5 | 3 . 2 Ballistic Cannon 2 | . . 2 Launcher . | . . . Special Weapon . | . . . Impact Weapon . | . . . Slashing Weapon . | . . . Piercing Weapon . | . . . Special Melee Weapon . | . . . Unidentified Prototypes . | . . . Parts Lost 7 | . 4 3 Power 1 | . 1 . Propulsion 4 | . 1 3 Utility . | . . . Weapon 2 | . 2 . Highest Loss Streak 2 | . 2 1 To Critical Strikes . | . . . Average Slot Usage (%) 88 | . 94 79 Engine 10 | . 13 6 Treads 12 | . 14 10 Wheel 12 | . 13 10 Device 14 | . 12 17 Storage 12 | . 14 11 Processor 1 | . . 3 Energy Gun 13 | . 22 . Ballistic Gun 5 | . 2 9 Ballistic Cannon 3 | . . 9 Naked Turns . | . . . Heaviest Build 56 | 12 49 56 Greatest Support 26 | 20 22 26 Greatest Overweight (x) 3 | 1 3 3 Average Overweight (x) 2 | . 1 2 Largest Inventory Capacity 20 | 8 20 20 Average Capacity 18 | 6 18 20 Most Carried 20 | 3 14 20 Average Carried 14 | 2 11 18 Final Capacity 20 | 8 20 20 Final Carried 20 | 3 14 20 Class Distribution -------------------- 97% | Mutant Dominant Class ---------------- Mutant | -10/Materials Mutant | -9/Materials Resources | -11 -10 -9 ----------- Run | Scr Mat Mat Matter Collected 663 | 171 139 353 Remotely . | . . . Salvage Created 800 | . 269 531 Parts 58 | . 27 31 Haulers Intercepted 1 | . . 1 Recyclers Shooed 1 | . . 1 Parts Field Recycled . | . . . Retrieved Matter . | . . . Parts Self-Destructed . | . . . Prevented . | . . . Kills | -11 -10 -9 ------- Run | Scr Mat Mat Combat Hostiles Destroyed 17 | . 6 11 Guns 7 | . 3 4 Cannons 7 | . . 7 AOE 2 | . 2 . Classes Destroyed 9 | . 6 3 Tunneler 1 | . 1 . Hauler 1 | . . 1 Recycler 1 | . . 1 Mechanic 1 | . 1 . Operator 2 | . 1 1 Watcher 4 | . 3 1 Swarmer 6 | . 3 3 Grunt 6 | . 3 3 Sentry 5 | . . 5 Best Kill Streak 5 | . 3 5 Combat Bots Only 5 | . 3 5 Max Kills in Single Turn 3 | . 3 2 Gunslinging . | . . . Exploded 2 | . 2 . Melee . | . . . Uniques/NPCs Destroyed . | . . . Combat | -11 -10 -9 -------- Run | Scr Mat Mat Damage Taken 963 | . 495 468 Core 246 | . 162 84 Absorbed by Shields . | . . . Core Remaining (%) 67 | 100 35 . Volleys Fired 57 | . 25 32 Largest 2 | . 2 2 Hottest 90 | . 90 69 Shots Fired 98 | . 39 59 Gun 66 | . 39 27 Cannon 32 | . . 32 Launcher . | . . . Special . | . . . Kinetic 59 | . . 59 Thermal . | . . . Explosive . | . . . Electromagnetic 39 | . 39 . Robot Hit Streak 11 | . 6 11 Robot Miss Streak 4 | . 4 2 Penetration Max . | . . . Secondary Targets . | . . . Shots Hit Robots 62 | . 21 41 Core Hits 31 | . 11 20 Critical Kills 1 | . . 1 Critical Parts Destroyed 1 | . . 1 Critical Strikes 2 | . . 2 Destroy 2 | . . 2 Melee Attacks . | . . . Impact . | . . . Slashing . | . . . Piercing . | . . . Sneak Attacks . | . . . Combat Hostiles . | . . . Follow-up Attacks . | . . . Damage Inflicted 1566 | . 699 867 Guns 731 | . 398 333 Cannons 534 | . . 534 Explosions 301 | . 301 . Melee . | . . . Ramming . | . . . Kinetic 867 | . . 867 Thermal 301 | . 301 . Explosive . | . . . Electromagnetic 398 | . 398 . Impact . | . . . Slashing . | . . . Piercing . | . . . Highest Corruption . | . . . Average Corruption . | . . . Corruption Purged . | . . . Corruption Blocked . | . . . Overload Shots . | . . . Overflow Damage 81 | . 73 8 Projectiles 8 | . . 8 Explosions 73 | . 73 . Melee . | . . . Knockbacks 3 | . . 3 Impact . | . . . Kinetic 2 | . . 2 Secondary 1 | . . 1 Self-Inflicted Damage 237 | . 237 . Shots 4 | . 4 . Rammed . | . . . Targets Rammed . | . . . Kicked . | . . . Crushed . | . . . Highest Temperature 130 | . 130 30 Average Temperature 27 | . 41 7 Received Heat Transfer 141 | . 24 117 Siege Activations . | . . . Robots Corrupted 1 | . 1 . Combat Hostiles 1 | . 1 . Parts Fried 1 | . 1 . Impact Corruptions . | . . . Robots Melted . | . . . Combat Hostiles . | . . . Parts Melted . | . . . Heat Transferred 250 | . 250 . Parts Sabotaged . | . . . Parts Stolen . | . . . Parts Stripped . | . . . Power Chain Reactions 2 | . 2 . Missiles Intercepted . | . . . Alert | -11 -10 -9 ------- Run | Scr Mat Mat Peak Influence 398 | . 398 304 Initial 167 | . . 167 Average 105 | . 61 182 Maximum Alert Level 1 | . 1 1 Low Security (%) 86 | 100 93 74 Level 1 13 | . 6 25 Level 2 . | . . . Level 3 . | . . . Level 4 . | . . . Level 5 . | . . . High Security . | . . . Max Security . | . . . Squads Dispatched 3 | . 1 2 Investigation . | . . . Extermination . | . . . Reinforcement 3 | . 1 2 Assault . | . . . Garrison . | . . . Intercept . | . . . Searches Triggered . | . . . Construction Impeded . | . . . Haulers Reinforced . | . . . Active Scanning Responses . | . . . Cargo Convoy Interrupts . | . . . Stealth | -11 -10 -9 --------- Run | Scr Mat Mat Distress Signals 1 | . 1 . Communications Jammed . | . . . Distress Signals . | . . . Times Spotted 28 | . 15 13 Peak Tracking Total 4 | . 3 4 Tactical Retreats 1 | . 1 . Traps | -11 -10 -9 ------- Run | Scr Mat Mat Traps Triggered 4 | . 1 3 Indirectly . | . . . Trap Hack Attempts . | . . . Triggered . | . . . Disarmed . | . . . Reprogrammed . | . . . Reused . | . . . Traps Extracted . | . . . Installed . | . . . Triggered . | . . . Machines | -11 -10 -9 ---------- Run | Scr Mat Mat Machines Disabled 8 | . 6 2 Max in Single Turn 5 | . 5 1 Machines Sabotaged . | . . . Garrisons Compromised . | . . . Overloaded Fab Kills . | . . . Hacking | -11 -10 -9 --------- Run | Scr Mat Mat Machines Accessed 9 | . 5 4 Terminals 9 | . 5 4 Fabricators . | . . . Repair Stations . | . . . Recycling Units . | . . . Scanalyzers . | . . . Garrison Access . | . . . Total Hacks 24 | . 16 8 Successful 18 | . 10 8 Failed 6 | . 6 . Catastrophic . | . . . Database Lockouts . | . . . Manual 21 | . 15 6 Terminals 24 | . 16 8 Fabricators . | . . . Repair Stations . | . . . Recycling Units . | . . . Scanalyzers . | . . . Garrison Access . | . . . Terminal Hacks 8 | . 4 4 Robot Analysis 3 | . 2 1 Branch Access Points 1 | . . 1 Unreport Threat 1 | . . 1 Locate Traps 1 | . 1 . Patrol Status 1 | . 1 . Zone Layout 1 | . . 1 Fabricator Hacks . | . . . Repair Station Hacks . | . . . Recycling Unit Hacks . | . . . Scanalyzer . | . . . Garrison Access Hacks . | . . . Unauthorized Hacks 10 | . 6 4 Terminals 10 | . 6 4 Botnet 9 | . 5 4 Operators 1 | . 1 . Fabricators . | . . . Repair Stations . | . . . Recycling Units . | . . . Scanalyzers . | . . . Garrison Access . | . . . Data Cores Recovered . | . . . Used . | . . . Hacking Detections 6 | . 3 3 Full Trace Events . | . . . Feedback Events . | . . . Feedback Blocked . | . . . Robot Schematics Acquired . | . . . Robots Built . | . . . Authchips . | . . . Time . | . . . Total Robot Build Rating . | . . . Part Schematics Acquired . | . . . Parts Built . | . . . Authchips . | . . . Time . | . . . Total Part Build Rating . | . . . Parts Repaired . | . . . Time . | . . . Parts Recycled . | . . . Recycled Matter . | . . . Retrieved Matter . | . . . Retrieved Components . | . . . Parts Scanalyzed . | . . . Part Schematics Acquired . | . . . Parts Damaged . | . . . Bothacking | -11 -10 -9 ------------ Run | Scr Mat Mat Used RIF Installer . | . . . Robots Hacked . | . . . Non-combat . | . . . Combat . | . . . Robot Hacks Applied . | . . . Relay Couplers Released . | . . . Fabnet Peak Effective % . | . . . Robots Rewired . | . . . Allies Hacked . | . . . Hacks Repelled . | . . . Allies | -11 -10 -9 -------- Run | Scr Mat Mat Total Allies . | . . . Largest Group . | . . . Highest-Rated Group . | . . . Highest-Rated Ally . | . . . Total Orders . | . . . Ally Attacks . | . . . Total Damage . | . . . Kills . | . . . Allies Corrupted . | . . . Allies Melted . | . . . Intel | -11 -10 -9 ------- Run | Scr Mat Mat Robot Analysis Total 3 | . 2 1 Derelict Logs Recovered . | . . . Drone Launches . | . . . Drone Recoveries . | . . . Exploration | -11 -10 -9 ------------- Run | Scr Mat Mat Turns Passed 1926 | 46 1149 731 Spaces Moved 889 | 39 516 334 Core 3 | 3 . . Treads 2 | 1 . 1 Legs . | . . . Wheels 884 | 35 516 333 Hover . | . . . Flight . | . . . Fastest Speed 50 | 50 80 115 Average Speed 117 | 86 114 126 Slowest Speed 240 | 160 130 240 Overloaded Moves . | . . . Propulsion Burnouts . | . . . Robots Hopped . | . . . Cave-ins Triggered . | . . . Exploration Rate (%) 33 | 4 61 35 Regions Visited 2 Branch Regions . Pre-discovered Areas . | . . . Known Exits Taken . | . . . Unknown Exits Taken 2 | 1 1 . Scrap Searched . | . . . Spaces Dug . | . . . Terrain Destroyed 81 | . 76 5 Melee . | . . . Projectile 5 | . . 5 AOE 76 | . 76 . Terrain Rammed . | . . . Walls Destroyed . | . . . Machines Disabled . | . . . Actions | -11 -10 -9 --------- Run | Scr Mat Mat Total 1671 | 47 1035 589 Wait 661 | . 473 188 Move 887 | 38 515 334 Hop . | . . . Pick Up 27 | 2 13 12 Fast Attach 18 | 6 3 9 Attach 5 | . 1 4 Detach . | . . . Swap 6 | 1 1 4 Drop 10 | . 4 6 Fire 57 | . 25 32 Melee . | . . . Ram . | . . . Kick . | . . . Crush . | . . . Escape Stasis . | . . . Rewire . | . . . Trap . | . . . Miscellaneous . | . . . Route ------- -11/Scrapyard -10/Materials (discovered 3 exits: *Mat x2 / [*Min]) -9/Materials (discovered 2 exits: *Mat / Min) History --------- Turn | Location | Event 16 | -11/Scrapyard | Discovered new exit (range 14) 47 | -11/Scrapyard | Entered Materials 169 | -10/Materials | Discovered new exit (range 16) 171 | -10/Materials | Discovered new exit (range 13) 306 | -10/Materials | Build established: Mutant 1078 | -10/Materials | Discovered new exit (range 14) 1128 | -10/Materials | Core integrity fell below 50% 1196 | -10/Materials | Entered another Materials area 1196 | -9/Materials | Evolved 2 slots: Utility x2 1720 | -9/Materials | Discovered new exit (range 4) 1729 | -9/Materials | Identified exit to Materials 1927 | -9/Materials | Identified exit to Mines 1927 | -9/Materials | Self-destructed Last Messages --------------- 01833_ Acquired Lgt. Treads. 01835_ Dropped Lgt. Treads. 01838_ Acquired 2 matter. 01839_ Acquired 8 matter. 01840_ K-01 Serf collects debris. 01883_ Wheel destroyed. 01883_ Y-45 Defender destroyed. 01887_ Dropped Ion Engine. 01899_ Acquired 46 matter. 01901_ Acquired 3 matter. 01927_ Connecting with Terminal... >>Trojan(Botnet) Trojan loaded successfully. Testing... Terminal linked with 3 systems. Awaiting botnet instructions. >>Access(Branch) Found 1 branch access point: (50,49) Mines Map updated. Map ----- +----------------------------------------------------+ | ??#"" # ## #?# # #? #?????????? | | ??#"Y ] + ## #?# ||! + # """ #?????????? | | ??#"" # ## %! #?# ||! # =# """ #?????????? | | ??# # ## %#?# ||! # +% """ #?????????? | | ??######## ###%###?# ?## ## #?????????? | | #?# #?###???######??# #? """ #?????????? | | # #???????????????# #?? """ #?????????? | | # #???????????????# #?? """ #?????????? | | + ########???????????????# #??? ??????????? | | # #??????????????????????# #???""" #?????????? | | # < #??????????????????????# #????"" #?????????? | | ?# #??????????????????????# #????"" ??????????? | | #?#####??????????????????????# #?????????????????? | | ?????????????????????????????# #?????????????????? | | ???????????????####+####?????# #?????????????????? | | ???????????????# #???### ###???????????????? | | ???????????????# ##### #???????????????? | | ???????????????#[ ### #???????? | | ???????????????# #???????? | | ???????????????# ### #???????? | | ???????????????# ##### #????? #???????? | | ???????????????# #???###+###???????????????? | | ??????????#########+#########????????????????????? | | ??????????# * #????????????????????? | | ?????????## " #????????????????????? | | ?????????# = @T #????????????????????? | | ?????????## """ """ """ " #????????????????????? | | ??????????# """ """ """ #????????????????????? | | ??????????# """ """ """ !#????????????????????? | | ??????????# #????????????????????? | | ??????????###################????????????????????? | | | | | | | | | | | | | | | | | | | | | | | | | | | | | | | | | | | | | | | +----------------------------------------------------+ Best States ------------- Heat Dissipation 38 Energy Generation 12 Energy Capacity 265 Matter Stores 300 Matter Capacity 300 Sight Range 16 Terrain Scan Density 10 Additional Mass Support 6 Evasion (%) 44 Item Schematics ----------------- None Robot Schematics ------------------ None Fabricated ------------ Nothing Alien Tech Used ----------------- None Achievements -------------- None Challenges ------------ None Game ------ Seed SensorStorageReconfigurator Manual? 0 Play Time 00:13:20 Cumulative 340.5 hours Start 2022.06.19 @ 09:37:55 End 2022.06.19 @ 10:01:41 Sessions 1 Manual Loads 0 Difficulty Rogue Special Mode None Game No. 607 Rogue 452 Adventurer 148 Explorer 7 Win Type - Total 11 Types 9/0/1/1/0/0/0/0/0 Lore% 75 Gallery% 87 Achievement% 67 Wizard Run 0 Options --------- ASCII 0 Keyboard 0 Movement Numpad Keybinds 0 Fullscreen 1 Font 18/SmallcapsGlow Map View 76x50 Tactical HUD 1 Map Filters NONE Filters NONE Steam 1 RUN: 698fca67-5ec8-4714-9293-77956acd1f62